[Event "Rosh Hashanah Rapid 2022"]
[Site "Ramat Gan"]
[Date "2022.09.25"]
[Round "4.6"]
[White "Uritsky, Yonathan"]
[Black "Dvoirys, Semen I."]
[Result "0-1"]
[ECO "B46"]
[WhiteElo "2236"]
[BlackElo "2461"]
[Annotator "TA"]
[PlyCount "90"]
[EventDate "2022.09.25"]
[EventType "rapid"]
[EventCountry "ISR"]
[SourceTitle "playchess.com"]
[Source "ChessBase"]
[SourceQuality "1"]
[TimeControl "900+5"]

{[%evp 11,90,33,54,36,47,42,36,42,83,15,23,27,25,16,16,0,40,34,30,28,30,38,26,11,13,0,1,0,8,-45,-43,-36,-34,-35,-42,-35,-39,-256,-229,-216,-220,-358,-363,-345,-326,-325,-295,-286,-282,-269,-255,-433,-366,-397,-395,-381,-386,-387,-395,-957,-957,-748,-717,-29983,-12839,-12840,-12840,-29990,-29991,-29991,-12847,-29992,-12839,-12839,-12839,-12841,-12839,-12839,-12840,-12839,-12839]} 1. e4 {[%emt 0:00:02]} c5 {[%emt 0:00:01]} 2. Nf3 {[%emt 0:00:02]} Nc6 {[%emt 0:00:06]} 3. d4 cxd4 {[%emt 0:00:01]} 4. Nxd4 {[%emt 0:00:02]} e6 {[%emt 0:00:03]} 5. Nc3 {[%emt 0:00:03]} a6 {[%emt 0:00:03]} 6. g3 {[%emt 0:00:01]} Nf6 {[%emt 0:00:35]} 7. Bg2 {[%emt 0:00:02] B46: Sicilian: Taimanov: 5 Nc3 a6.} d6 {[%emt 0:01:06]} 8. Nxc6 {[%emt 0:00:02]} bxc6 {[%emt 0:00:01]} 9. e5 {[%emt 0:00:01] White is slightly better.} Nd5 {[%emt 0:00:02]} 10. Nxd5 {[%emt 0:00:01]} (10. exd6 $16 {Threatens to win with Ne4.} Rb8 11. O-O (11. Nxd5 cxd5 12. c4 Bxd6 $14)) 10... cxd5 {[%emt 0:00:03]} (10... exd5 {feels hotter.} 11. c4 dxe5 12. cxd5 cxd5 13. Qxd5 Bb4+) 11. exd6 {[%emt 0:00:02]} Bxd6 {[%emt 0:00:08]} 12. O-O {[%emt 0:00:02] [#]} Qc7 $146 {[%emt 0:00:55]} ({Predecessor:} 12... Rb8 13. c4 Be5 14. cxd5 O-O 15. Qe2 Qf6 16. Rb1 exd5 17. Bxd5 Bf5 18. Be4 Rfe8 19. Bxf5 Qxf5 20. Be3 Qe6 21. b3 Bd4 22. Qc4 {½-½ (22) Steinbrecher,M (1394)-Schroeter,R (1535) Mecklenburg VP 2014}) 13. Qe2 {[%emt 0:00:12]} Bb7 {[%emt 0:02:49]} 14. Rd1 {[%emt 0:00:30]} O-O {[%emt 0:00:38]} 15. c4 $1 {[%emt 0:00:01][%cal Rc4d5]} Rfe8 {[%emt 0:02:52]} 16. cxd5 {[%emt 0:00:04]} exd5 {[%emt 0:00:45]} 17. Qd3 {[%emt 0:00:12]} Bc5 {[%emt 0:00:02]} 18. b3 {[%emt 0:00:58]} ({Inferior is} 18. Bxd5 Rad8 19. Bf4 Qa5 20. Bxf7+ Kxf7 21. Qb3+ {[#]} Bd5 $1 {[%mdl 512]} 22. Rxd5 Bxf2+ $1 {[%mdl 512]} 23. Kxf2 Qxd5 24. Qxd5+ Rxd5 $17) 18... Qb6 {[%emt 0:00:08]} 19. Qd2 {[%emt 0:00:49]} Rac8 {[%emt 0:00:20][%cal Ba8c8,Bc8c2,Bc2b2][%mdl 32]} 20. Bb2 {[%emt 0:00:01] [#]} ({White should play} 20. Rb1 $11) 20... Bxf2+ $1 $15 {[%emt 0:00:14]} 21. Qxf2 {[%emt 0:00:20]} Qxf2+ {[%emt 0:00:02][%mdl 64] Remove Defender} 22. Kxf2 {[%emt 0:00:02]} Rc2+ {[%emt 0:00:04]} 23. Kg1 {[%emt 0:00:03] And now Re1 would win.} Rxb2 {[%emt 0:00:02]} 24. Bxd5 $2 {[%emt 0:00:10] Loses the game.} (24. Rdc1 $15) 24... Bxd5 $19 {[%emt 0:00:03]} 25. Rxd5 $15 {[%emt 0:00:02][%mdl 4096] Endgame KRR-KRR} g6 {[%emt 0:00:03]} 26. Ra5 {[%emt 0:00:34]} (26. Rd3 $142) 26... Ree2 $19 {[%emt 0:00:16]} 27. h4 {[%emt 0:00:34]} Rg2+ {[%emt 0:00:05]} 28. Kh1 {[%emt 0:00:29]} Rh2+ {[%emt 0:00:11]} 29. Kg1 {[%emt 0:00:02]} Rbg2+ {[%emt 0:00:02]} 30. Kf1 {[%emt 0:00:01]} Rxg3 {[%emt 0:00:02] ...Rg4 is the strong threat.} 31. Re1 $2 {[%emt 0:00:28]} (31. Rxa6 Rxh4 32. Kf2) 31... Rf3+ {[%emt 0:00:51]} 32. Kg1 {[%emt 0:00:01]} Rxh4 {[%emt 0:00:02]} 33. Kg2 {[%emt 0:00:12]} Rf6 {[%emt 0:00:03]} 34. Re8+ {[%emt 0:00:11]} Kg7 {[%emt 0:00:01]} 35. Ra8 $2 {[%emt 0:00:01]} (35. Re2) 35... Rg4+ {[%emt 0:00:04]} 36. Kh3 {[%emt 0:00:10]} h5 {[%emt 0:00:04]} 37. R8xa6 {[%emt 0:00:11]} Rf3+ {[%emt 0:00:03]} 38. Kh2 {[%emt 0:00:02]} Rf2+ {[%emt 0:00:03]} 39. Kh3 {[%emt 0:00:17]} f5 {[%emt 0:00:07]} 40. Rc5 {[%emt 0:00:40]} Kh6 {[%emt 0:00:27]} (40... f4 $142 41. Rc3 Rg1 42. Rc7+ Kh6 43. Rxg6+ Kxg6 44. Rc6+ Kf5 45. Rc5+ Ke6 46. Rc6+ Kd7 47. Rc1 Rg3+ 48. Kh4 Rh2#) 41. Ra4 {[%emt 0:00:49]} Rxa4 {[%emt 0:00:07]} (41... f4 $142 42. Rxf4 Rgxf4 43. Rc3 h4 44. Rc5 g5 45. Rc6+ Kh5 46. Rh6+ Kxh6 47. a4 R4f3+ 48. Kg4 Rg3#) 42. bxa4 {[%emt 0:00:01] Black is clearly winning.} Rxa2 {[%emt 0:00:01]} 43. a5 {[%emt 0:00:01]} Ra3+ {[%emt 0:00:07]} 44. Kg2 {[%emt 0:00:04]} Kg5 {[%emt 0:00:01]} 45. Rb5 {[%emt 0:00:04]} Kg4 {[%emt 0:00:04] Weighted Error Value: White=0.94/Black=0.34} 0-1

[Event "Rosh Hashanah Rapid 2022"]
[Site "Ramat Gan"]
[Date "2022.09.25"]
[Round "4.7"]
[White "Sokolovsky, Yahli"]
[Black "Ehrlich, Roy"]
[Result "1-0"]
[ECO "C07"]
[WhiteElo "2419"]
[BlackElo "2202"]
[Annotator "TA"]
[PlyCount "129"]
[EventDate "2022.09.25"]
[EventType "rapid"]
[EventCountry "ISR"]
[SourceTitle "playchess.com"]
[Source "ChessBase"]
[SourceQuality "1"]
[TimeControl "900+5"]

{[%evp 12,129,17,-13,9,9,7,9,4,4,7,0,-3,-13,0,-4,0,0,0,-17,-23,-14,0,-27,-25,-51,-30,-22,-33,-31,-39,-86,-43,-63,-62,-44,-4,-24,25,-54,13,-20,-18,-35,-6,-6,-4,-9,0,-1,-21,-19,-3,-19,5,8,0,0,6,6,15,0,0,0,0,-23,90,92,89,74,83,80,90,83,264,256,263,264,263,264,346,325,422,417,1590,427,425,424,405,405,293,232,232,232,287,287,287,287,287,266,393,237,554,542,1238,1405,946,802,12831,12833,12833,12818,12833,12834,12831,12832,12835,12834,481,363]} 1. e4 {[%emt 0:00:03]} e6 {[%emt 0:00:01]} 2. d4 {[%emt 0:00:01]} d5 {[%emt 0:00:01]} 3. Nd2 {[%emt 0:00:01]} c5 {[%emt 0:00:01]} 4. Ngf3 {[%emt 0:00:02]} cxd4 {[%emt 0:00:02]} 5. Nxd4 {[%emt 0:00:01]} Nf6 {[%emt 0:00:01]} 6. exd5 {[%emt 0:00:20]} Qxd5 {[%emt 0:00:02]} 7. N2f3 {[%emt 0:01:50]} Bc5 {[%emt 0:00:05] C07: French Tarrasch: 3...c5, 4 Ngf3 and 4 exd5 Qxd5.} 8. Be2 {[%emt 0:02:13]} O-O {[%emt 0:00:28]} 9. O-O {[%emt 0:00:12]} Rd8 {[%emt 0:00:12][%cal Rc5d4] The position is equal.} 10. Nb3 {[%emt 0:00:29]} Qxd1 {[%emt 0:00:19] [#]} 11. Bxd1 $146 {[%emt 0:00:14]} ({Predecessor:} 11. Rxd1 Rxd1+ 12. Bxd1 Bb6 13. Bf4 Nc6 14. Ne5 Nxe5 15. Bxe5 Ne4 16. Bd4 Bxd4 17. Nxd4 e5 18. Nb3 {½-½ (53) Podhorsky,M (2005)-Mrazik,V (1915) Slovakia 2007}) 11... Be7 {[%emt 0:01:46]} 12. Bf4 {[%emt 0:01:15]} b6 {[%emt 0:00:31]} 13. Nbd4 {[%emt 0:01:55]} Bb7 {[%emt 0:01:50]} 14. c3 {[%emt 0:00:22]} Nbd7 {[%emt 0:01:36]} 15. Be2 {[%emt 0:00:25]} Nd5 {[%emt 0:00:23]} 16. Bg3 {[%emt 0:00:04]} Nc5 {[%emt 0:00:08]} 17. Ne5 {[%emt 0:01:20]} Rac8 {[%emt 0:09:04]} 18. Bb5 {[%emt 0:00:43]} a6 {[%emt 0:00:00]} 19. Bc6 {[%emt 0:00:20]} Bf6 {[%emt 0:00:00]} 20. Bxb7 {[%emt 0:00:52]} Nxb7 {[%emt 0:00:00]} 21. Rad1 {[%emt 0:00:15]} (21. Nec6 $15 Re8 22. Rfe1) 21... Nc5 {[%emt 0:00:00]} 22. Rfe1 {[%emt 0:00:00]} Na4 {[%emt 0:00:00]} 23. Rd2 {[%emt 0:00:05]} Bg5 {[%emt 0:00:00]} 24. Rc2 {[%emt 0:02:31][%cal Oe5f7]} Ne7 {[%emt 0:00:00] [#]} (24... Re8 {feels stronger.}) 25. Rce2 {[%emt 0:00:31]} (25. Nxf7 $1 $11 Kxf7 26. Nxe6) 25... h5 {[%emt 0:00:00]} (25... Bf6 $15) 26. f4 {[%emt 0:00:15]} (26. Nxf7 {looks sharper.} Kxf7 27. Nxe6 Bf6 28. Nxd8+ Rxd8 29. Be5) 26... Bf6 {[%emt 0:00:00]} 27. Bf2 {[%emt 0:00:00]} Nc5 {[%emt 0:00:00]} 28. Ndf3 {[%emt 0:00:01]} b5 {[%emt 0:00:00]} 29. g3 {[%emt 0:00:05]} Nd3 {[%emt 0:00:00]} 30. Nxd3 {[%emt 0:00:22]} Rxd3 {[%emt 0:00:00]} 31. Re3 {[%emt 0:00:02]} Rcd8 {[%emt 0:00:00]} 32. Kf1 {[%emt 0:00:01]} b4 {[%emt 0:00:00]} 33. Rxd3 {[%emt 0:00:12]} Rxd3 {[%emt 0:00:00]} 34. Ke2 {[%emt 0:00:04]} Rd7 {[%emt 0:00:00]} 35. cxb4 {[%emt 0:00:02]} Bxb2 {[%emt 0:00:00]} 36. Rd1 {[%emt 0:00:00]} Nd5 {[%emt 0:00:00] White must now prevent ...Nc3+.} 37. Be1 {[%emt 0:00:49]} Rb7 {[%emt 0:00:00]} 38. Rb1 {[%emt 0:00:02]} Ba3 {[%emt 0:00:00] [#]} (38... Bc3 $11) 39. Rb3 $1 $16 {[%emt 0:00:01]} Bc1 {[%emt 0:00:00]} (39... Bxb4 $2 40. a3 $18) 40. a4 {[%emt 0:00:14]} Rc7 {[%emt 0:00:32]} 41. b5 axb5 42. axb5 {[%emt 0:00:02] aiming for b6.} Rc2+ $2 {[%emt 0:00:19] A mistake that costs the game.} (42... Be3 $16 {was necessary.}) 43. Kd3 $18 {[%emt 0:00:04]} Rb2 {[%emt 0:00:12]} 44. Rxb2 {[%emt 0:00:10]} Bxb2 {[%emt 0:00:01][%mdl 4096] Endgame KBN-KBN} 45. Bf2 {[%emt 0:00:08]} Ba3 {[%emt 0:00:31]} 46. b6 {[%emt 0:00:01]} Bd6 {[%emt 0:00:04]} 47. b7 {[%emt 0:00:05]} Kf8 {[%emt 0:00:10] [#]} (47... Nb4+ $142 48. Kc4 Nc6) 48. Kc4 {[%emt 0:00:03]} (48. Bc5 $142 $1 {[%mdl 512]} Bxc5 49. b8=Q+ Ke7 50. Qb7+ Kf6 51. Qb2+ Ke7 52. Qxg7) 48... Bb8 {[%emt 0:00:12]} 49. Ne5 {[%emt 0:00:03] Strongly threatening Nd7+.} Ke8 {[%emt 0:00:21] Inhibits Nd7.} 50. Nc6 {[%emt 0:00:01]} Bc7 {[%emt 0:00:12]} 51. b8=Q+ {[%emt 0:00:01]} Bxb8 {[%emt 0:00:02]} 52. Nxb8 {[%emt 0:00:01]} Ne7 {[%emt 0:00:05]} 53. Na6 {[%emt 0:00:04]} f6 {[%emt 0:00:05]} 54. Nc5 {[%emt 0:00:15]} Kf7 {[%emt 0:00:01]} 55. Nd3 {[%emt 0:00:04]} g5 {[%emt 0:00:02]} (55... Kg6 $142 56. Bc5 Nd5) 56. Be3 {[%emt 0:00:11]} h4 $2 {[%emt 0:00:10]} (56... gxf4 {is more resistant.} 57. Nxf4 Nf5) 57. fxg5 {[%emt 0:00:16] White is clearly winning.} hxg3 {[%emt 0:00:04]} 58. hxg3 {[%emt 0:00:00] Threatens to win with gxf6.} Nf5 {[%emt 0:00:03]} 59. Bf2 {[%emt 0:00:08] Hoping for gxf6.} fxg5 {[%emt 0:00:01]} 60. Ne5+ {[%emt 0:00:04]} Kf6 {[%emt 0:00:01]} 61. Ng4+ {[%emt 0:00:01]} Ke7 {[%emt 0:00:11]} 62. Kd3 {[%emt 0:00:01]} Kd6 {[%emt 0:00:18]} 63. Ke4 {[%emt 0:00:00]} Ne7 {[%emt 0:00:01]} 64. Ne5 {[%emt 0:00:01]} Nf5 {[%emt 0:00:04]} 65. Nf7+ {[%emt 0:00:01] Weighted Error Value: White=0.23 (precise) /Black=0.29 (precise)} 1-0

[Event "Rosh Hashanah Rapid 2022"]
[Site "Ramat Gan"]
[Date "2022.09.25"]
[Round "4.9"]
[White "Duchan, Yoav"]
[Black "Zak, Uriel"]
[Result "0-1"]
[ECO "C56"]
[WhiteElo "1764"]
[BlackElo "2262"]
[Annotator "TA"]
[PlyCount "116"]
[EventDate "2022.09.25"]
[EventType "rapid"]
[EventCountry "ISR"]
[SourceTitle "playchess.com"]
[Source "ChessBase"]
[SourceQuality "1"]
[TimeControl "900+5"]

{[%evp 24,116,28,18,19,-40,-64,-186,-176,-199,-175,-456,-111,-116,-83,-96,-72,-76,-52,-105,-85,-85,-60,-85,-78,-71,-78,-85,-85,-85,-85,-85,-85,-85,-85,-327,-85,-85,-85,-85,-85,-85,-85,-85,0,-85,-85,-91,-37,-120,-25,-85,-67,-72,-63,-159,-114,-256,-234,-166,-166,-240,-220,-487,-460,-1425,-1428,-1376,-1239,-1188,-1573,-1443,-836,-1683,-1336,-1800,-1647,-1626,-1562,-1666,-1422,-1539,-1431,-1399,-1113,-2462,-2665,-29950,-600,-29951,-1873,-29952,-29952,-5502,-895]} 1. e4 {[%emt 0:00:01]} e5 {[%emt 0:01:00]} 2. Bc4 {[%emt 0:00:02]} Nf6 {[%emt 0:00:06]} 3. d4 {[%emt 0:15:17]} exd4 {[%emt 0:00:12]} 4. Nf3 {[%emt 0:00:00]} Nc6 {[%emt 0:00:10]} 5. e5 {[%emt 0:00:00]} d5 {[%emt 0:00:04]} 6. Bb5 {[%emt 0:00:00]} Ne4 {[%emt 0:00:11]} 7. Nxd4 {[%emt 0:00:00]} Bd7 {[%emt 0:00:03]} 8. Bxc6 {[%emt 0:00:00]} bxc6 {[%emt 0:00:01]} 9. O-O {[%emt 0:00:00]} Bc5 {[%emt 0:00:06]} 10. Be3 {[%emt 0:00:00]} O-O {[%emt 0:00:08]} 11. f3 {[%emt 0:00:00]} Ng5 {[%emt 0:00:18]} 12. f4 {[%emt 0:00:00]} Ne4 {[%emt 0:00:55]} 13. Nd2 {[%emt 0:00:00]} f6 {[%emt 0:00:12] C56: Two Knights: 4 d4 exd4 5 0-0 Nxe4.} 14. N2b3 {[%emt 0:00:00]} (14. Nxe4 $11 dxe4 15. Qe2) 14... Bb6 $15 {[%emt 0:00:20] [#]} 15. Kh1 $146 {[%emt 0:00:00]} ({White should try} 15. e6 $15 c5 16. exd7 cxd4 17. Bxd4 Qxd7 18. Bxb6 axb6 19. c4) ({Predecessor:} 15. c3 fxe5 16. fxe5 Rxf1+ 17. Qxf1 Qe7 18. c4 Rf8 19. Qc1 Qxe5 20. c5 Nxc5 21. Nf3 Nxb3 22. Nxe5 Nxc1 23. Bxb6 {0-1 (36) Gratze,M (1948)-Kalisky,V (2147) Skalica 2022}) 15... fxe5 $19 {[%emt 0:00:33] Black is clearly better.} 16. fxe5 {[%emt 0:00:00]} Qe7 {[%emt 0:00:52] Inhibits e6.} 17. Bf4 $2 {[%emt 0:00:00]} (17. a4 {might work better.}) 17... c5 $2 {[%emt 0:00:35]} (17... Qh4 $19 18. e6 Rxf4 19. Rxf4 Qxf4) 18. Ne2 $17 {[%emt 0:00:00]} d4 {[%emt 0:01:33] ...Qh4 is the strong threat.} 19. Nd2 {[%emt 0:00:00]} Nxd2 {[%emt 0:00:26] Black has more active pieces.} 20. Qxd2 {[%emt 0:00:00]} Bc6 {[%emt 0:00:29]} 21. c3 {[%emt 0:00:00]} (21. Bg3 $15) 21... dxc3 {[%emt 0:01:13]} 22. Nxc3 {[%emt 0:00:00]} Qe6 {[%emt 0:00:02]} 23. Rad1 {[%emt 0:00:00]} h6 {[%emt 0:00:05]} 24. Bg3 {[%emt 0:00:00]} c4 {[%emt 0:00:26]} 25. Qe2 {[%emt 0:00:00]} Rad8 {[%emt 0:00:23]} 26. Rxf8+ {[%emt 0:00:00]} Rxf8 {[%emt 0:00:03]} 27. Rf1 {[%emt 0:00:00]} Rxf1+ {[%emt 0:01:05]} 28. Qxf1 {[%emt 0:00:00]} Bd4 {[%emt 0:00:24] This bishop pair is nice.} 29. Ne2 $2 {[%emt 0:00:00]} (29. Bf2 $17 Bxf2 30. Qxf2) 29... Bxe5 $2 {[%emt 0:00:45]} (29... Bxb2 $19 {and Black stays clearly on top.} 30. Nf4 Qf7) 30. Bxe5 {[%emt 0:00:00]} Qxe5 $19 {[%emt 0:00:03][%mdl 4096] Endgame KQB-KQN} 31. Nc3 {[%emt 0:00:00]} Qe6 {[%emt 0:00:25]} 32. Kg1 {[%emt 0:00:00]} Qe3+ {[%emt 0:00:22]} 33. Kh1 {[%emt 0:00:00]} Qe6 {[%emt 0:00:28]} 34. Kg1 $1 {[%emt 0:00:06]} a6 {[%emt 0:03:57]} 35. h3 {[%emt 0:01:09]} h5 {[%emt 0:00:00]} (35... Ba8 $17) 36. Qe2 {[%emt 0:00:22]} (36. Qf4 $15) 36... Qf7 {[%emt 0:00:00]} (36... Qxe2 $17 37. Nxe2 h4) 37. Qf2 {[%emt 0:00:48]} (37. Qe5 $11 {keeps the balance.}) 37... Qg6 {[%emt 0:00:00]} 38. Qe2 {[%emt 0:00:11]} Kh7 {[%emt 0:00:00]} 39. g4 {[%emt 0:00:05] Black keeps a firm grip on the game.} (39. h4 $15) 39... hxg4 {[%emt 0:00:00]} 40. Qxg4 {[%emt 0:00:09]} (40. hxg4 $17 Qd3 41. Kf2) 40... Qxg4+ {[%emt 0:00:00]} 41. hxg4 $17 {[%emt 0:00:01] KB-KN} Bd7 {[%emt 0:00:00]} 42. Ne4 {[%emt 0:00:15]} (42. Kf2 $142) 42... Bxg4 {[%emt 0:00:00] Strongly threatening ...Kg6.} 43. Nd2 $2 {[%emt 0:00:02]} (43. Kf2) 43... Be6 $19 {[%emt 0:00:00][%cal Oc4c3]} 44. a3 {[%emt 0:00:04]} (44. Ne4 $142 Bd5 45. Nc3) 44... Kg6 {[%emt 0:00:00]} 45. Kf2 {[%emt 0:00:01]} Kf5 {[%emt 0:00:00]} 46. Ke3 {[%emt 0:00:01]} g5 {[%emt 0:00:00][%cal Bg7g5,Bg5g4][%mdl 32]} 47. Nf1 {[%emt 0:00:03]} Ke5 {[%emt 0:00:00]} 48. Ng3 {[%emt 0:00:14]} g4 {[%emt 0:00:00] [#] And now ...Bd5 would win.} 49. Nf1 {[%emt 0:00:06]} Bd5 {[%emt 0:00:00]} 50. Ng3 {[%emt 0:00:02]} Bg2 {[%emt 0:00:00]} 51. Ne2 {[%emt 0:00:10]} Bf3 {[%emt 0:00:00]} 52. Ng3 {[%emt 0:00:08]} a5 {[%emt 0:00:00][%cal Ba6a5,Ba5a4][%mdl 32] White must now prevent ...c5.} 53. Nf1 {[%emt 0:00:02]} Kd5 {[%emt 0:00:00][%cal Oc4c3] Hoping for ...c3!} 54. Ng3 {[%emt 0:00:09]} a4 {[%emt 0:00:00][%cal Oc4c3] ( -> ...c3!)} 55. Nf1 {[%emt 0:00:01]} c6 {[%emt 0:00:00]} (55... c3 $142 56. bxc3 Kc4 57. Kd2 Kb3 58. Kc1 Kxa3 59. Kd2 Kb2 60. Ne3 a3 61. Nc4+ Kb3 62. Na5+ Ka4 63. Nc4 a2 64. Ke3 a1=Q 65. Kf4 Qc1+ 66. Ne3 Qd2 67. c4 Qd4+ 68. Kf5 Qxe3 69. Kg6 g3 70. Kg7 g2 71. Kh8 g1=Q 72. Kh7 Qe4+ 73. Kh8 Qh4#) 56. Ng3 {[%emt 0:00:04]} c5 {[%emt 0:00:00]} (56... c3 $142 57. bxc3 Kc4 58. Kd2 Kb3 59. c4 Kxa3 60. Kc2 Ka2 61. Nf1 Be4+ 62. Kc3 Bf3 63. Kc2 {[#]} Bd1+ $1 {[%mdl 512]} 64. Kc1 Be2 65. Ne3 Kb3 66. Kb1 g3 67. Ng2 Bxc4 68. Nf4 Bd5 69. Kc1 g2 70. Ne2 a3 71. Nd4+ Kb4 72. Ne2 a2 73. Kb2 Bb3 74. Ng1 c5 75. Ne2 c4 76. Ka1 c3 77. Nc1 c2 78. Nd3+ Ka3 79. Nc1 Bc4 80. Nxa2 g1=Q+ 81. Nc1 Qxc1#) 57. Nf1 {[%emt 0:00:01]} c3 {[%emt 0:00:00]} 58. bxc3 {[%emt 0:00:08]} Kc4 {[%emt 0:00:00] Weighted Error Value: White=0.69/Black=0.40} 0-1

[Event "Rosh Hashanah Rapid 2022"]
[Site "Ramat Gan"]
[Date "2022.09.25"]
[Round "5.1"]
[White "Ben Ari, Yannay"]
[Black "Mindlin, Alon"]
[Result "1/2-1/2"]
[ECO "D36"]
[WhiteElo "2387"]
[BlackElo "2426"]
[Annotator "TA"]
[PlyCount "75"]
[EventDate "2022.09.25"]
[EventType "rapid"]
[EventCountry "ISR"]
[SourceTitle "playchess.com"]
[Source "ChessBase"]
[SourceQuality "1"]
[TimeControl "900+5"]

{[%evp 23,75,14,18,0,0,0,0,0,22,11,21,-16,-25,-18,0,-18,0,2,0,0,23,0,6,6,15,19,19,19,20,19,19,19,18,17,37,0,37,0,33,0,48,0,0,-10,-15,-22,-3,-11,0,-6,0,-19,-14,-38]} 1. d4 {[%emt 0:00:01]} Nf6 {[%emt 0:00:03]} 2. c4 {[%emt 0:00:05]} Ng8 {[%emt 0:00:05]} 3. Nc3 {[%emt 0:00:01]} Nf6 {[%emt 0:00:10]} 4. Nb1 {[%emt 0:00:06]} e6 {[%emt 0:00:01]} 5. Nc3 {[%emt 0:00:11]} d5 {[%emt 0:00:05]} 6. cxd5 {[%emt 0:00:02]} exd5 {[%emt 0:00:02]} 7. Bg5 {[%emt 0:00:01]} Be7 {[%emt 0:00:06]} 8. e3 {[%emt 0:00:03]} O-O {[%emt 0:00:04]} 9. Bd3 {[%emt 0:00:04]} c6 {[%emt 0:00:02]} 10. Nge2 {[%emt 0:00:02]} Nbd7 {[%emt 0:00:05]} 11. O-O {[%emt 0:00:29]} Re8 {[%emt 0:00:06]} 12. Qc2 {[%emt 0:00:27]} Nf8 {[%emt 0:00:05]} 13. a4 {[%emt 0:01:46] [#] D36: Queen's Gambit Declined: Exchange Variation: Main line (5 Bg5 c6 6 Qc2).} g6 $146 {[%emt 0:01:20]} ({Predecessor:} 13... a5 14. f3 g6 15. e4 dxe4 16. fxe4 Ne6 17. Bxf6 Bxf6 18. d5 Nd4 19. Nxd4 Bxd4+ 20. Kh1 Qh4 21. g3 Qh5 {0-1 (31) Tovmasyan,H (1940)-Manukyan,G (2317) Van Nuys 2016}) 14. Rae1 {[%emt 0:01:17]} Ne6 {[%emt 0:01:05]} 15. Bh4 {[%emt 0:00:03]} Nh5 {[%emt 0:00:10][%cal Bf6h5,Bh5g7,Bg7f5][%mdl 32]} 16. Bxe7 {[%emt 0:00:06]} Qxe7 {[%emt 0:00:06]} 17. Qb3 {[%emt 0:04:11]} a5 {[%emt 0:00:54]} 18. Qa3 {[%emt 0:00:12]} Qb4 {[%emt 0:01:02]} 19. Nc1 {[%emt 0:02:00][%cal Be2c1,Bc1d3,Bd3e5][%mdl 32]} Bd7 {[%emt 0:00:59]} 20. Be2 {[%emt 0:00:30]} Nhg7 {[%emt 0:01:17]} 21. Nd3 {[%emt 0:00:02]} Qf8 {[%emt 0:00:04]} 22. Ne5 {[%emt 0:00:41]} Red8 {[%emt 0:00:21]} 23. Rb1 {[%emt 0:00:25]} f6 {[%emt 0:00:08]} 24. Nd3 {[%emt 0:00:50]} Nf5 {[%emt 0:00:42]} 25. Qxf8+ {[%emt 0:00:23]} Kxf8 {[%emt 0:00:06]} 26. b4 {[%emt 0:00:02]} axb4 {[%emt 0:00:23]} 27. Rxb4 {[%emt 0:00:02]} Nd6 {[%emt 0:01:35]} 28. Bg4 {[%emt 0:00:23]} Ng7 {[%emt 0:01:01]} 29. Be2 {[%emt 0:00:55]} Ke7 {[%emt 0:00:14]} 30. Rfb1 {[%emt 0:00:21]} Ne6 {[%emt 0:00:19]} 31. Bg4 {[%emt 0:00:17]} Nf8 {[%emt 0:00:51]} (31... Nf4 $11 32. Nxf4 Bxg4) 32. Bf3 {[%emt 0:00:46]} (32. Rxb7 $2 Nxb7 33. Rxb7 Rdb8 34. Rxb8 (34. Rc7 $2 Kd6 $19) 34... Rxb8 $17) (32. Bxd7 $14 Nxd7 33. Nc5) 32... Bf5 $11 {[%emt 0:00:04] The position is equal.} 33. Rd1 {[%emt 0:00:10]} Bxd3 {[%emt 0:00:03]} 34. Rxd3 {[%emt 0:00:01]} Ne6 {[%emt 0:00:16]} 35. Rd1 {[%emt 0:00:03]} Ra7 {[%emt 0:00:28]} 36. Rdb1 {[%emt 0:00:05]} Kd7 {[%emt 0:00:03]} 37. Rc1 {[%emt 0:00:25]} f5 {[%emt 0:00:11]} 38. Bd1 {[%emt 0:00:20] A rather calm draw.  Weighted Error Value: White=0.13 (very precise) /Black=0.12 (very precise)} 1/2-1/2

[Event "Rosh Hashanah Rapid 2022"]
[Site "Ramat Gan"]
[Date "2022.09.25"]
[Round "5.2"]
[White "Aizenberg, Benny"]
[Black "Levin, Guy"]
[Result "1/2-1/2"]
[ECO "B32"]
[WhiteElo "2412"]
[BlackElo "2382"]
[Annotator "RC"]
[PlyCount "66"]
[EventDate "2022.09.25"]
[EventType "rapid"]
[EventCountry "ISR"]
[SourceTitle "playchess.com"]
[Source "ChessBase"]
[SourceQuality "1"]
[TimeControl "900+5"]

1. e4 {[%emt 0:00:01]} c5 {[%emt 0:00:07]} 2. Nf3 {[%emt 0:00:01]} Nc6 {[%emt 0:00:01]} 3. d4 {[%emt 0:00:02]} cxd4 {[%emt 0:00:03]} 4. Nxd4 {[%emt 0:00:01]} e5 {[%emt 0:00:02]} 5. Nb5 {[%emt 0:00:02]} d6 {[%emt 0:00:01]} 6. N1c3 {[%emt 0:00:02]} a6 {[%emt 0:00:02]} 7. Na3 {[%emt 0:00:01]} Be7 {[%emt 0:00:08]} 8. Nc4 {[%emt 0:00:11]} Be6 {[%emt 0:00:15]} 9. Nd5 {[%emt 0:00:29]} b5 {[%emt 0:00:11]} 10. Nce3 {[%emt 0:00:02]} Nf6 {[%emt 0:00:06]} 11. Nxf6+ {[%emt 0:00:05]} Bxf6 {[%emt 0:00:01]} 12. c3 {[%emt 0:00:19]} O-O {[%emt 0:00:04]} 13. Bd3 {[%emt 0:00:02]} Bg5 {[%emt 0:00:05]} 14. O-O {[%emt 0:00:13]} b4 {[%emt 0:02:19]} 15. Qa4 {[%emt 0:02:09]} Bd7 {[%emt 0:05:26]} 16. cxb4 {[%emt 0:01:15]} Rb8 {[%emt 0:00:00]} 17. b5 {[%emt 0:00:48]} Nd4 {[%emt 0:02:10]} 18. Qxa6 {[%emt 0:00:41]} Bxb5 {[%emt 0:00:14]} 19. Bxb5 {[%emt 0:00:04]} Rxb5 {[%emt 0:00:18]} 20. Nd5 {[%emt 0:01:20]} Bxc1 {[%emt 0:00:19]} 21. Raxc1 {[%emt 0:00:01]} Rxb2 {[%emt 0:00:57]} 22. Rc8 {[%emt 0:00:35]} Qd7 {[%emt 0:00:01]} 23. Rxf8+ {[%emt 0:00:27]} Kxf8 {[%emt 0:00:01]} 24. Qa8+ {[%emt 0:00:01]} Qe8 {[%emt 0:00:01]} 25. Qa3 {[%emt 0:00:01]} Qb8 {[%emt 0:00:07]} 26. h3 {[%emt 0:00:56]} g6 {[%emt 0:00:13]} 27. Kh2 {[%emt 0:00:23]} Kg7 {[%emt 0:00:08]} 28. f4 {[%emt 0:02:31]} Qb5 {[%emt 0:01:08]} 29. Qxd6 {[%emt 0:00:15]} Qxf1 {[%emt 0:00:09]} 30. Qxe5+ {[%emt 0:00:08]} Kh6 {[%emt 0:00:11]} 31. Qg5+ {[%emt 0:00:24]} Kg7 {[%emt 0:00:01]} 32. Qf5 {[%emt 0:04:15]} Kh6 {[%emt 0:00:09]} 33. Qg5+ {[%emt 0:00:00]} Kg7 {[%emt 0:02:52]} 1/2-1/2